Cogmind - Beta 13 @@@ ROGUE MODE // 2024.04.03 @ 00:42:13 Player: Iris Result: Self-destructed Performance ------------- Evolutions (2) 1000 Regions Visited (5) 1000 Robots Destroyed (22) 110 Value Destroyed (552) 552 Prototype IDs (4) 80 Alien Tech Used (0) 0 Bonus (0) 0 TOTAL SCORE: 2742 Bonus ------- None Cogmind --------- Core Integrity 263/550 Matter 235/300 Energy 280/280 System Corruption 0% Temperature Cool (9) Movement Walking (130) Location -8/Materials Parts ------- > --- POWER (2) -------- Heavy Ion Engine > --- PROPULSION (2) --- Improved Titanium Leg > --- UTILITY (4) ------ Signal Interpreter > --- WEAPON (3) ------- (None) > --- INVENTORY (5) ---- Light Ion Engine Light Fission Core Carbon-fiber Leg Small Laser Faulty Advanced Beam Cannon Peak State ------------ > --- POWER ------------ Heavy Ion Engine Deuterium Engine > --- PROPULSION ------- Improved Titanium Leg Improved Titanium Leg > --- UTILITY ---------- Heat Sink Signal Interpreter Improved Terrain Scanner ECM Suite > --- WEAPON ----------- Shock Rifle Medium Laser Missile Launcher > --- INVENTORY -------- Light Ion Engine Light Fission Core Carbon-fiber Leg Small Laser Advanced Beam Cannon [Rating: 28] Favorites ----------- Power Improved Ion Engine Engine Improved Ion Engine Power Core Light Nuclear Core Propulsion Light Treads Treads Light Treads Leg Carbon-fiber Leg Utility Signal Interpreter Device Improved Terrain Scanner Processor Signal Interpreter Weapon Light Cannon Energy Gun Medium Laser Energy Cannon Advanced Beam Cannon Ballistic Gun Light Assault Rifle Ballistic Cannon Light Cannon Launcher Grenade Launcher Build | -11 -10 -10 -10 -9 -8 ------- Run | Yrd Mat Min Exi Min Mat Slots Evolved 4 | . . . . . 4 Power 1 | . . . . . 1 Propulsion . | . . . . . . Utility 2 | . . . . . 2 Weapon 1 | . . . . . 1 Parts Attached 27 | 5 3 3 . 1 15 Power 6 | 1 . 1 . . 4 Engine 5 | 1 . 1 . . 3 Core 1 | . . . . . 1 Reactor . | . . . . . . Propulsion 5 | 2 . . . . 3 Treads 2 | 2 . . . . . Leg 3 | . . . . . 3 Wheel . | . . . . . . Hover . | . . . . . . Flight . | . . . . . . Utility 6 | . 2 1 . . 3 Device 5 | . 1 1 . . 3 Storage . | . . . . . . Processor 1 | . 1 . . . . Hackware . | . . . . . . Protection . | . . . . . . Artifact . | . . . . . . Weapon 10 | 2 1 1 . 1 5 Energy Gun 4 | 2 . . . . 2 Energy Cannon 1 | . . . . . 1 Ballistic Gun 1 | . . . . . 1 Ballistic Cannon 1 | . . 1 . . . Launcher 3 | . 1 . . 1 1 Special Weapon . | . . . . . . Impact Weapon . | . . . . . . Slashing Weapon . | . . . . . . Piercing Weapon . | . . . . . . Special Melee Weapon . | . . . . . . Unidentified Prototypes 2 | . . . . . 2 Parts Lost 15 | . . . . . 15 Power 2 | . . . . . 2 Propulsion 3 | . . . . . 3 Utility 4 | . . . . . 4 Weapon 6 | . . . . . 6 Highest Loss Streak 8 | . . . . . 8 To Critical Strikes . | . . . . . . Average Slot Usage (%) 95 | . 80 100 100 100 80 Engine 14 | . 14 14 14 14 14 Treads 23 | . 28 28 28 28 7 Leg 1 | . . . . . 6 Device 15 | . 8 14 14 14 24 Processor 12 | . 1 14 14 14 9 Energy Gun 3 | . 16 11 . . 6 Ballistic Cannon 9 | . . 2 14 14 3 Launcher 12 | . 12 14 14 14 6 Naked Turns . | . . . . . . Heaviest Build 32 | 6 9 14 14 15 32 Greatest Support 40 | 40 40 40 40 40 40 Greatest Overweight (x) 10 | . . . . . 10 Average Overweight (x) . | . . . . . . Largest Inventory Capacity 5 | 5 5 5 5 5 5 Average Capacity 5 | 5 5 5 5 5 5 Most Carried 5 | . 1 4 5 5 5 Average Carried 4 | . . 2 4 5 4 Final Capacity 5 | 5 5 5 5 5 5 Final Carried 5 | . 1 4 5 5 5 Class Distribution -------------------- 95% | Mutant 4% | Skirmisher Dominant Class ---------------- Mutant | -10/Materials Mutant | -10/Mines Mutant | -10/Exiles Mutant | -9/Mines Mutant | -8/Materials Resources | -11 -10 -10 -10 -9 -8 ----------- Run | Yrd Mat Min Exi Min Mat Matter Collected 723 | 205 6 145 . 52 315 Remotely . | . . . . . . Salvage Created 350 | . 6 13 . 41 290 Parts 37 | . 1 . . 12 24 Haulers Intercepted . | . . . . . . Recyclers Shooed . | . . . . . . Parts Field Recycled . | . . . . . . Retrieved Matter . | . . . . . . Parts Self-Destructed . | . . . . . . Prevented . | . . . . . . Kills | -11 -10 -10 -10 -9 -8 ------- Run | Yrd Mat Min Exi Min Mat Combat Hostiles Destroyed 22 | . . 3 . 7 12 Guns 3 | . . . . . 3 Cannons 9 | . . . . 2 7 AOE 10 | . . 3 . 5 2 Classes Destroyed 7 | . 1 1 . 2 3 Worker 2 | . . . . . 2 Watcher 1 | . 1 . . . . Swarmer 10 | . . . . 6 4 Grunt 6 | . . . . 1 5 Sentry 2 | . . . . . 2 Hunter 1 | . . . . . 1 Assembled 3 | . . 3 . . . Best Kill Streak 5 | . 1 3 . 4 5 Combat Bots Only 4 | . . 3 . 4 4 Max Kills in Single Turn 3 | . 1 2 . 3 1 Gunslinging . | . . . . . . Exploded 3 | . . 2 . 3 1 Melee . | . . . . . . Uniques/NPCs Destroyed . | . . . . . . Combat | -11 -10 -10 -10 -9 -8 -------- Run | Yrd Mat Min Exi Min Mat Hostile Shots Fired 176 | . 15 8 . 12 141 Missed 51 | . 3 4 . 5 39 Damage Taken 1821 | . 165 49 . 66 1541 Core 351 | . 44 11 . 9 287 Absorbed by Shields . | . . . . . . Core Remaining (%) 87 | 100 . . . 74 . Volleys Fired 57 | . . 3 . 6 48 Largest 3 | . . 1 . 2 3 Hottest 136 | . . 30 . 68 136 Shots Fired 84 | . . 4 . 12 68 Gun 28 | . . 1 . . 27 Cannon 39 | . . . . 6 33 Launcher 17 | . . 3 . 6 8 Special . | . . . . . . Kinetic 52 | . . . . 6 46 Thermal 9 | . . 1 . . 8 Explosive 17 | . . 3 . 6 8 Electromagnetic 6 | . . . . . 6 Robot Hit Streak 11 | . . 1 . 1 11 Robot Miss Streak 4 | . . 1 . 4 2 Penetration Max . | . . . . . . Secondary Targets . | . . . . . . Shots Hit Robots 47 | . . 1 . 3 43 Core Hits 46 | . . 8 . 7 31 Critical Kills . | . . . . . . Critical Parts Destroyed . | . . . . . . Critical Strikes 2 | . . . . 1 1 Burn 1 | . . . . . 1 Blast 1 | . . . . 1 . Melee Attacks . | . . . . . . Impact . | . . . . . . Slashing . | . . . . . . Piercing . | . . . . . . Sneak Attacks . | . . . . . . Combat Hostiles . | . . . . . . Follow-up Attacks . | . . . . . . Damage Inflicted 1473 | . . 168 . 291 1014 Guns 228 | . . . . . 228 Cannons 453 | . . . . 51 402 Explosions 786 | . . 168 . 237 381 Melee . | . . . . . . Ramming 6 | . . . . 3 3 Kinetic 528 | . . . . 51 477 Thermal 76 | . . . . . 76 Explosive 786 | . . 168 . 237 381 Electromagnetic 77 | . . . . . 77 Impact . | . . . . . . Slashing . | . . . . . . Piercing . | . . . . . . Highest Corruption 1 | . 1 1 1 1 . Average Corruption 1 | . 1 1 1 1 . Corruption Purged . | . . . . . . Corruption Blocked . | . . . . . . Effects 19 | . . 3 13 3 . Message Errors 4 | . . . 3 1 . Matter Fused 6 | . . 2 3 1 . Heat Flow Errors 3 | . . . 3 . . Parts Fused 1 | . . . 1 . . Data Loss (minor) 1 | . . . 1 . . Data Loss (major) 1 | . . . 1 . . Misfires 1 | . . 1 . . . Alerts 2 | . . . 1 1 . Overload Shots . | . . . . . . Overflow Damage 105 | . . . . . 105 Projectiles . | . . . . . . Explosions 105 | . . . . . 105 Melee . | . . . . . . Knockbacks 6 | . . . . . 6 Impact . | . . . . . . Kinetic 6 | . . . . . 6 Secondary . | . . . . . . Self-Inflicted Damage 214 | . . 4 . . 210 Shots 4 | . . 1 . . 3 Rammed 2 | . . . . 1 1 Targets Rammed 3 | . 1 . . 1 1 Kicked . | . . . . . . Crushed 1 | . 1 . . . . Highest Temperature 302 | . . 12 211 27 302 Average Temperature 92 | . . 8 96 13 119 Received Heat Transfer 654 | . 93 . . 12 549 Siege Activations . | . . . . . . Robots Corrupted . | . . . . . . Combat Hostiles . | . . . . . . Parts Fried . | . . . . . . Impact Corruptions . | . . . . . . Robots Melted . | . . . . . . Combat Hostiles . | . . . . . . Parts Melted 1 | . . . . . 1 Heat Transferred 296 | . . . . . 296 Parts Sabotaged . | . . . . . . Parts Stolen . | . . . . . . Parts Stripped . | . . . . . . Power Chain Reactions . | . . . . . . Alert | -11 -10 -10 -10 -9 -8 ------- Run | Yrd Mat Min Exi Min Mat Peak Influence 344 | . 37 46 . 134 344 Initial 52 | . . 14 . . 52 Average 76 | . 6 20 . 23 166 Maximum Alert Level 1 | . . . . . 1 Low Security (%) 88 | 100 100 100 . 100 70 Level 1 11 | . . . . . 29 Level 2 . | . . . . . . Level 3 . | . . . . . . Level 4 . | . . . . . . Level 5 . | . . . . . . High Security . | . . . . . . Max Security . | . . . . . . Squads Dispatched 3 | . . . . 1 2 Investigation . | . . . . . . Extermination . | . . . . . . Reinforcement 3 | . . . . 1 2 Assault . | . . . . . . Garrison . | . . . . . . Intercept . | . . . . . . Searches Triggered . | . . . . . . Construction Impeded 3 | . . . . 1 2 Haulers Reinforced . | . . . . . . Active Scanning Responses . | . . . . . . Cargo Convoy Interrupts . | . . . . . . Stealth | -11 -10 -10 -10 -9 -8 --------- Run | Yrd Mat Min Exi Min Mat Distress Signals 1 | . . . . . 1 Communications Jammed . | . . . . . . Distress Signals . | . . . . . . Times Spotted 33 | . 4 6 . 6 17 Peak Tracking Total 6 | . 4 6 . 3 5 Tactical Retreats 3 | . . 1 . . 2 Traps | -11 -10 -10 -10 -9 -8 ------- Run | Yrd Mat Min Exi Min Mat Traps Triggered . | . . . . . . Indirectly . | . . . . . . Trap Hack Attempts . | . . . . . . Triggered . | . . . . . . Disarmed . | . . . . . . Reprogrammed . | . . . . . . Reused . | . . . . . . Traps Extracted . | . . . . . . Installed . | . . . . . . Triggered . | . . . . . . Machines | -11 -10 -10 -10 -9 -8 ---------- Run | Yrd Mat Min Exi Min Mat Machines Disabled 2 | . . . . . 2 Max in Single Turn 2 | . . . . . 2 Machines Repaired . | . . . . . . Machines Dismantled . | . . . . . . Machines Sabotaged . | . . . . . . Overloaded Fab Kills . | . . . . . . Hacking | -11 -10 -10 -10 -9 -8 --------- Run | Yrd Mat Min Exi Min Mat Machines Accessed 7 | . 1 . 4 . 2 Terminals 3 | . 1 . . . 2 Fabricators . | . . . . . . Repair Stations . | . . . . . . Recycling Units . | . . . . . . Scanalyzers . | . . . . . . Garrison Access . | . . . . . . Total Hacks 56 | . 3 . 49 . 4 Successful 53 | . 1 . 49 . 3 Failed 3 | . 2 . . . 1 Catastrophic . | . . . . . . Database Lockouts . | . . . . . . Manual 5 | . . . 5 . . Terminals 7 | . 3 . . . 4 Fabricators . | . . . . . . Repair Stations . | . . . . . . Recycling Units . | . . . . . . Scanalyzers . | . . . . . . Garrison Access . | . . . . . . Terminal Hacks 53 | . 1 . 49 . 3 Record 49 | . . . 49 . . Prototype ID Bank 1 | . . . . . 1 Alert Level 1 | . . . . . 1 Reinforcement Status 1 | . 1 . . . . Hauler Manifests 1 | . . . . . 1 Fabricator Hacks . | . . . . . . Repair Station Hacks . | . . . . . . Recycling Unit Hacks . | . . . . . . Scanalyzer . | . . . . . . Garrison Access Hacks . | . . . . . . Unauthorized Hacks . | . . . . . . Terminals . | . . . . . . Fabricators . | . . . . . . Repair Stations . | . . . . . . Recycling Units . | . . . . . . Scanalyzers . | . . . . . . Garrison Access . | . . . . . . Data Cores Recovered . | . . . . . . Used . | . . . . . . Hacking Detections 3 | . 1 . . . 2 Full Trace Events 1 | . 1 . . . . Feedback Events 1 | . 1 . . . . Corruption 1 | . 1 . . . . Feedback Blocked . | . . . . . . Robot Schematics Acquired . | . . . . . . Robots Built . | . . . . . . Authchips . | . . . . . . Time . | . . . . . . Total Robot Build Rating . | . . . . . . Part Schematics Acquired . | . . . . . . Parts Built . | . . . . . . Authchips . | . . . . . . Time . | . . . . . . Total Part Build Rating . | . . . . . . Parts Repaired . | . . . . . . Time . | . . . . . . Parts Recycled . | . . . . . . Recycled Matter . | . . . . . . Retrieved Matter . | . . . . . . Retrieved Components . | . . . . . . Parts Scanalyzed . | . . . . . . Part Schematics Acquired . | . . . . . . Parts Damaged . | . . . . . . Bothacking | -11 -10 -10 -10 -9 -8 ------------ Run | Yrd Mat Min Exi Min Mat Used RIF Installer . | . . . . . . Robots Hacked . | . . . . . . Non-combat . | . . . . . . Combat . | . . . . . . Robot Hacks Applied . | . . . . . . Relay Couplers Released . | . . . . . . Fabnet Peak Effective % . | . . . . . . Robots Rewired . | . . . . . . Allies Hacked . | . . . . . . Hacks Repelled . | . . . . . . Allies | -11 -10 -10 -10 -9 -8 -------- Run | Yrd Mat Min Exi Min Mat Total Allies . | . . . . . . Largest Group . | . . . . . . Highest-Rated Group . | . . . . . . Highest-Rated Ally . | . . . . . . Total Orders . | . . . . . . Ally Attacks . | . . . . . . Total Damage . | . . . . . . Kills . | . . . . . . Allies Corrupted . | . . . . . . Allies Melted . | . . . . . . Intel | -11 -10 -10 -10 -9 -8 ------- Run | Yrd Mat Min Exi Min Mat Robot Analysis Total . | . . . . . . Derelict Logs Recovered 4 | . . 2 . 2 . Drone Launches . | . . . . . . Drone Recoveries . | . . . . . . Exploration | -11 -10 -10 -10 -9 -8 ------------- Run | Yrd Mat Min Exi Min Mat Turns Passed 3959 | 91 143 512 1965 467 781 Spaces Moved 2321 | 59 86 298 1228 279 371 Core 10 | 9 . . . . 1 Treads 2090 | 50 86 298 1228 279 149 Legs 221 | . . . . . 221 Wheels . | . . . . . . Hover . | . . . . . . Flight . | . . . . . . Fastest Speed 50 | 50 160 160 160 160 120 Average Speed 161 | 143 160 160 160 160 173 Slowest Speed 550 | 160 160 160 160 160 550 Overloaded Moves . | . . . . . . Propulsion Burnouts . | . . . . . . Robots Hopped . | . . . . . . Cave-ins Triggered . | . . . . . . Exploration Rate (%) 44 | 3 20 54 92 71 28 Regions Visited 5 Branch Regions 3 Pre-discovered Areas 2 | . . . 1 1 . Known Exits Taken 4 | . 1 1 1 1 . Unknown Exits Taken 1 | 1 . . . . . Scrap Searched 3 | . . . . 3 . Spaces Dug . | . . . . . . Terrain Destroyed 158 | . . 25 . 63 70 Melee . | . . . . . . Projectile . | . . . . . . AOE 158 | . . 25 . 63 70 Terrain Rammed . | . . . . . . Walls Destroyed . | . . . . . . Machines Disabled . | . . . . . . Actions | -11 -10 -10 -10 -9 -8 --------- Run | Yrd Mat Min Exi Min Mat Total 2437 | 63 90 330 1228 287 439 Wait 24 | . . 24 . . . Move 2316 | 58 85 297 1227 278 371 Hop . | . . . . . . Pick Up 1 | . . . 1 . . Fast Attach 24 | 5 3 3 . 1 12 Attach 3 | . . . . . 3 Detach 7 | . 1 3 . . 3 Swap . | . . . . . . Drop 2 | . . . . 1 1 Fire 57 | . . 3 . 6 48 Melee . | . . . . . . Ram . | . . . . . . Kick . | . . . . . . Crush 3 | . 1 . . 1 1 Escape Stasis . | . . . . . . Rewire . | . . . . . . Trap . | . . . . . . Miscellaneous . | . . . . . . Route ------- -11/Scrapyard -10/Materials -10/Mines -10/Exiles (discovered 2 exits: *Min x2) -9/Mines -8/Materials History --------- Turn | Location | Event 15 | -11/Scrapyard | Discovered new exit (range 15) 92 | -11/Scrapyard | Entered Materials 221 | -10/Materials | Discovered new exit (range 9) 233 | -10/Materials | Identified exit to Mines 235 | -10/Materials | Entered Mines 264 | -10/Mines | Learned Materials terminal intel 285 | -10/Mines | Learned Materials security intel 300 | -10/Mines | Build established: Mutant 331 | -10/Mines | Assembled infested the area 389 | -10/Mines | Met 8R-AWN 584 | -10/Mines | Joined a pair of Derelicts in attacking an 0b10 outpost 726 | -10/Mines | Discovered new exit (range 5) 732 | -10/Mines | Identified exit to Exiles 747 | -10/Mines | Entered Exiles 786 | -10/Exiles | Discovered new exit (range 15) 840 | -10/Exiles | Identified exit to Mines 884 | -10/Exiles | Welcomed by 8R-AWN 934 | -10/Exiles | Learned about 8R-AWN's background 953 | -10/Exiles | Met EX-HEX 1038 | -10/Exiles | Met EX-DEC 1057 | -10/Exiles | Learned location of Zion (-7) 1173 | -10/Exiles | Visited The Gauntlet 1489 | -10/Exiles | Discovered exit to Mines (range 10) 1593 | -10/Exiles | Met EX-BIN 2712 | -10/Exiles | Entered Mines 2810 | -9/Mines | Found a hidden stash of uninstalled traps 2887 | -9/Mines | Received a Rocket Launcher from a helpful Derelict 2908 | -9/Mines | Learned Materials terminal intel 3150 | -9/Mines | Discovered new exit (range 14) 3177 | -9/Mines | Identified exit to Materials 3179 | -9/Mines | Entered Materials 3179 | -8/Materials | Evolved 4 slots: Power x1, Utility x2, Weapon x1 3181 | -8/Materials | Loaded intel: 12 terminal locations 3562 | -8/Materials | Lost 4 parts (1p1n2w) 3960 | -8/Materials | Self-destructed Last Messages --------------- 03939_ U-05 Engineer builds a Wall. 03941_ K-01 Serf collects debris. 03941_ U-05 Engineer lays Concrete. 03942_ M-13 Machinist repairs Y-45 Defender. 03942_ U-05 Engineer builds a Wall. 03945_ K-01 Serf collects debris. 03945_ U-05 Engineer lays Concrete. 03946_ U-05 Engineer builds a Wall. 03947_ R-06 Scavenger collects Lgt. Armor Plating. 03948_ K-01 Serf collects debris. 03949_ U-05 Engineer lays Concrete. 03950_ R-06 Scavenger collects Lgt. Treads. 03951_ K-01 Serf collects debris. 03954_ Imp. Titanium Leg destroyed. 03954_ R-06 Scavenger collects Beam Rifle. 03957_ Imp. Terrain Scanner destroyed. 03957_ Critical hit (Burn: +37). 03957_ M-13 Machinist repairs G-47 Trooper. 03958_ K-01 Serf collects debris. Map ----- +----------------------------------------------------+ | // ## ^ ^ ^ ^ #?????????? | | // ## ^ ! #?????????? | | ##^ #?????#??#? | | ## """ ^ #?????????? | | ## """ ############ """ !! #?????????? | | ## """ #?##??????## """ !!#####??????? | | ####### #???##???#?# """ ==#??????? | | ?????## #??????????# #??????? | | ?##?#?# !!! ##??##????## ^ ^ !!#??????? | | ????#?# !! ####?#?#???# ^ ^ !!#??????# | | ?#????# !! ########???# ^ "" !!#??#???? | | ?????## ########??## T" !!##?????? | | ?#??#?# % #??# "" #####??????? | | #?????# #### %% #?## #?#????#???? | | #?????# #?## %#??# #??????????? | | #??#####+############% ##?# ########??????? ??? | | ????#/ # !# #??# ##???????#?????"""? | | ??### # """ # % #??# ##???????????? "T"? | | ????# # """ + #### ###### # ?????? | | ???## """ # """ # +??????? | | ????# """"" # # ###### #??????? | | ????# """"" # """ !# #?????????????????? | | ????# """"" # "??? # #####+#####??????????????? | | ????# """ # "?? # % # = #??????????????? | | ????#! # ???# # [#??????????????? | | ???############????## #@ r #??????????????? | | ?????????????#??????# # [ #??????????????? | | ???????#??#???????#?# # k #??????????????? | | ????????????????????# # mY "#??????????????? | | ????????????????????# # g #??????????????? | | ???????????????#????# #uY ! [ #??????????????? | | ??????????#?????????# #; ;; ;;##??????????????? | | ??????????? ????#???# #;;; #???????????????? | | ??????#????? ?#?????# ## # ####???????????????? | | ????????????????????# ?######????#?????????????? | | ????????????????????# ??????????#???????????????? | | ????????????????????# ?????????#?????????????????? | | ????????????????? ?? ? ?#?"????????????????#?????? | | ??????????????????? ?????????????????????????T???? | | ?????????????????????????????????????????????????? | | ?????????????????????????????????????????????????? | | ?????????????????????????????????????????????????? | | ?????????????????????????????????????????????????? | | ?????????????????????????????????????????????????? | | ????????????????????????#????????????????????????? | | ?????????????????????????????????????????????????? | | ?????????????????????????????????????????????????? | | ??????????????????????????????#??????????????????? | | ???????????????????????????????????"""???????????? | | ????????????"??????????????????????"T"???????????? | +----------------------------------------------------+ Best States ------------- Heat Dissipation 41 Energy Generation 23 Energy Capacity 455 Matter Stores 300 Matter Capacity 300 Sight Range 16 Terrain Scan Range 16 Terrain Scan Density 10 ECM Strength 1 Evasion (%) 55 Recoil Reduction 2 Item Schematics ----------------- None Robot Schematics ------------------ None Fabricated ------------ Nothing Alien Tech Used ----------------- None Achievements -------------- Librarian Challenges ------------ None Game ------ Seed StasisRefineryCanceller Manual? 0 Play Time 00:22:08 Cumulative 5.0 hours Start 2024.04.02 @ 04:14:00 End 2024.04.03 @ 00:42:13 Sessions 2 Manual Loads 0 Difficulty Rogue Special Mode None Game No. 14 Rogue 14 Adventurer 0 Explorer 0 Win Type - Total 0 Types 0/0/0/0/0/0/0/0/0 Lore% 11 Gallery% 11 Achievement% 14 Wizard Run 0 Options --------- Layout 2 ASCII 0 Keyboard 1 Movement Arrows Keybinds 0 Fullscreen 2 Font 32/SmallcapsGlow Map View 50x44 Zoom Use 0% Tactical HUD 1 Map Filters NONE Filters NONE Steam 1 RUN: 822caffd-ee51-43e3-8c48-1fa136854e55